bitfinex/quotes_ETHUSD_20220309
["timestamp","ask_amount","ask_price","bid_price","bid_amount"]
[1646814190393,1.07364589,2732.8,2732.2,0.06544603]
[1646814194026,1.2378,2732.9,2732.2,0.06544603]
[1646814195029,1.02973062,2732.7,2732.2,0.06544603]
[1646814196776,1.69801122,2732.7,2732.2,0.06544603]
[1646814198175,1.02973062,2732.7,2732.2,0.06544603]
[1646814199723,0.6682806,2732.8,2732.2,0.06544603]
[1646814200135,2.2711806,2732.9,2732.2,0.06544603]
[1646814200731,1.6029,2732.9,2732.2,0.06544603]
[1646814201131,2.2711806,2732.9,2732.2,0.06544603]
[1646814201431,2.8181973,2732.9,2732.2,0.06544603]
[1646814202034,1.2378,2732.9,2732.4,0.88214612]
[1646814204986,0.37522019,2732.8,2732.5,1.12090224]
[1646814205383,0.37522019,2732.7,2732.5,1.12090224]
[1646814205583,0.37522019,2732.6,2732.5,1.12090224]
[1646814205783,0.37522019,2732.9,2732.5,1.12090224]
[1646814205984,0.37522019,2732.8,2732.5,4.62090224]
[1646814206183,3.00197332,2733.0,2732.6,1.12090224]
[1646814206384,0.37518967,2732.9,2732.7,3.5]
[1646814206585,3.00197332,2733.0,2732.7,3.5]
[1646814206586,3.00197332,2733.0,2732.8,1.12090224]
[1646814206783,3.0,2733.0,2732.9,3.5]
[1646814206983,3.0,2733.0,2732.9,5.76455139]
[1646814207242,3.0,2733.0,2732.9,2.26455139]
[1646814207424,3.37519721,2733.0,2732.9,2.26455139]
[1646814207628,3.37501215,2733.0,2732.9,2.26455139]
[1646814207826,3.3750103,2733.0,2732.9,2.26455139]
[1646814208027,2.99894515,2733.0,2732.9,2.26455139]
[1646814208635,3.37386465,2733.0,2732.9,2.26455139]
[1646814208835,3.37387129,2733.0,2732.9,2.26455139]
[1646814209131,2.99894515,2733.0,2732.9,2.26455139]
[1646814209330,3.37385954,2733.0,2732.9,2.26455139]
[1646814209532,3.37385511,2733.0,2732.9,2.26455139]
[1646814209731,3.37376056,2733.0,2732.9,2.26455139]
[1646814211177,3.37376056,2733.0,2732.9,1.12090224]
[1646814211584,2.99894515,2733.0,2732.5,4.5]
[1646814211779,2.99894515,2733.0,2732.6,1.11930284]
[1646814211780,0.37479158,2732.9,2732.6,1.11930284]
[1646814211979,0.37479158,2732.9,2732.7,3.5]
[1646814212180,0.37479158,2732.9,2732.8,2.00337318]
[1646814212579,2.99894515,2733.0,2732.8,2.00337318]
[1646814212783,2.99894515,2733.0,2732.9,1.11930284]
[1646814212980,3.37565266,2733.0,2732.9,1.11930284]
[1646814213980,3.37373505,2733.0,2732.9,1.11930284]
[1646814214180,3.37373505,2733.0,2732.9,4.61930284]
[1646814214381,2.99894515,2733.0,2732.9,4.61930284]
[1646814214581,3.3736058,2733.0,2732.9,1.11930284]
[1646814214831,2.99894515,2733.0,2732.9,1.11930284]
[1646814215244,3.37362018,2733.0,2732.9,4.61930284]
[1646814215444,3.3736206,2733.0,2732.9,1.11930284]
[1646814215636,3.37354752,2733.0,2732.9,1.11930284]
[1646814215837,3.36797356,2733.0,2732.9,1.11930284]
[1646814216038,2.99894515,2733.0,2732.9,1.11930284]
[1646814216339,3.3679817,2733.0,2732.9,1.11930284]
[1646814216637,3.36793753,2733.0,2732.9,1.11930284]
[1646814216837,2.99894515,2733.0,2732.9,1.11930284]
[1646814217036,3.36792983,2733.0,2732.9,1.11930284]
[1646814217236,3.36793407,2733.0,2732.9,1.11930284]
[1646814217536,3.36800884,2733.0,2732.6,1.11930284]
[1646814217736,1.39750462,2733.0,2732.7,1.11930284]
[1646814217938,1.39750462,2733.0,2732.8,1.11930284]
[1646814218136,1.39750462,2733.0,2732.5,4.5]
[1646814218137,0.3987818,2732.9,2732.5,4.5]
[1646814218339,0.3987818,2732.9,2732.8,1.0274599]
[1646814218779,0.3987818,2732.9,2732.8,2.12188406]
[1646814222727,0.3987818,2732.9,2732.8,1.09442416]
[1646814223526,0.3987818,2732.9,2732.6,1.09442416]
[1646814223726,0.3987818,2732.9,2732.8,0.94125145]
[1646814223926,0.3987818,2732.9,2732.8,2.03567561]
[1646814226181,1.39750462,2733.0,2732.8,5.53567561]
[1646814226381,1.39946219,2733.0,2732.9,4.59442416]
[1646814226582,1.79463754,2733.0,2732.9,1.09442416]
[1646814227182,1.79267997,2733.0,2732.9,4.59442416]
[1646814227383,1.79267997,2733.0,2732.9,1.09442416]
[1646814227582,1.79267997,2733.0,2732.9,4.59442416]
[1646814227782,1.79267997,2733.0,2732.9,1.09442416]
[1646814232930,5.29267997,2733.0,2732.9,1.09442416]
[1646814233130,1.79267997,2733.0,2732.5,1.09442416]
[1646814233329,0.38591559,2732.9,2732.6,1.09442416]
[1646814233585,0.38591559,2732.9,2732.7,1.09442416]
[1646814233782,0.38591559,2732.9,2732.8,1.09442416]
[1646814233982,0.38591559,2732.9,2732.3,1.09442416]
[1646814235085,0.95202021,2732.6,2732.3,1.09442416]
[1646814235287,0.38591559,2732.5,2732.3,1.09442416]
[1646814236284,0.38591559,2732.4,2732.3,1.09442416]
[1646814236486,1.5711,2732.9,2732.3,1.09442416]
[1646814236487,0.38591559,2732.8,2732.3,1.09442416]
[1646814237334,1.01641739,2732.7,2732.3,1.09442416]
[1646814237535,0.38591559,2732.6,2732.3,1.09442416]
[1646814238035,1.30138559,2732.6,2732.3,1.09442416]
[1646814238235,0.38591559,2732.5,2732.3,1.09442416]
[1646814238836,3.60888955,2732.9,2732.5,0.57154825]
[1646814239035,0.3863193,2732.8,2732.6,1.09442416]
[1646814239740,1.31810533,2732.8,2732.6,1.09361403]
[1646814239939,0.93178603,2732.8,2732.6,1.09361403]
[1646814240342,1.39946199,2733.0,2732.6,1.09361403]
[1646814240540,1.39750462,2733.0,2732.6,1.09361403]
[1646814240841,1.39946199,2733.0,2732.6,1.09361403]
[1646814241485,1.39946199,2733.0,2732.7,1.15814382]
[1646814241687,1.39750462,2733.0,2732.7,1.15814382]
[1646814241889,1.39946204,2733.0,2732.7,1.15814382]
[1646814242888,1.39750462,2733.0,2732.5,0.57154825]
[1646814243088,1.39946208,2733.0,2732.5,0.57154825]
[1646814244091,1.39750462,2733.0,2732.5,0.57154825]
[1646814244287,1.39750462,2733.0,2732.5,1.60701891]
[1646814244288,1.39946201,2733.0,2732.5,1.60701891]
[1646814244738,2.31474201,2733.0,2732.5,0.57154825]
[1646814245430,2.31278462,2733.0,2732.5,0.57154825]
[1646814245631,2.314742,2733.0,2732.5,0.57154825]
[1646814246435,2.31278462,2733.0,2732.5,0.57154825]
[1646814246634,5.81278462,2733.0,2732.5,0.57154825]
[1646814246834,5.814742,2733.0,2732.5,0.57154825]
[1646814247032,2.314742,2733.0,2732.5,0.57154825]
[1646814247733,2.31278462,2733.0,2732.5,0.57154825]
[1646814247934,2.314742,2733.0,2732.5,0.57154825]
[1646814248879,2.31278462,2733.0,2732.5,0.57154825]
[1646814249083,1.39946201,2733.0,2732.5,0.57154825]
[1646814250084,1.39750462,2733.0,2732.5,0.57154825]
[1646814250284,1.39750462,2733.0,2732.8,0.97377626]
[1646814250485,1.39946201,2733.0,2732.8,0.97377626]
[1646814251384,1.39750462,2733.0,2732.8,0.97377626]
[1646814251691,1.39946211,2733.0,2732.8,0.97377626]
[1646814252327,1.39946211,2733.0,2732.5,0.57154825]
[1646814252531,1.39750462,2733.0,2732.5,0.57154825]
[1646814252727,1.39946211,2733.0,2732.5,0.57154825]
[1646814253730,1.39750462,2733.0,2732.5,0.57154825]
[1646814253929,1.39946201,2733.0,2732.5,0.57154825]
[1646814254830,1.39750462,2733.0,2732.5,0.57154825]
[1646814255131,1.39946201,2733.0,2732.5,0.57154825]
[1646814257085,1.39946201,2733.0,2732.5,1.56219367]
[1646814257283,1.39750462,2733.0,2732.5,1.56219367]
[1646814257484,1.39946201,2733.0,2732.5,1.56219367]
[1646814258485,1.39750462,2733.0,2732.5,1.56219367]
[1646814258682,1.39946201,2733.0,2732.5,1.56219367]
[1646814258883,1.39946201,2733.0,2732.5,0.57154825]
[1646814259740,1.39946201,2733.0,2732.6,1.11774539]
[1646814259741,0.37727472,2732.9,2732.6,1.11774539]
[1646814260631,0.37727472,2732.9,2732.7,1.12720164]
[1646814260834,0.37727472,2732.9,2732.5,0.57154825]
[1646814261032,0.37727472,2732.9,2732.6,1.12719258]
[1646814261837,0.37727472,2732.9,2732.5,0.57154825]
[1646814262037,0.37727472,2732.9,2732.6,1.12723206]
[1646814262340,0.37727472,2732.9,2732.5,0.57154825]
[1646814262538,0.37727472,2732.9,2732.6,1.12723387]
[1646814262739,0.37727472,2732.9,2732.5,0.57154825]
[1646814263485,0.37727472,2732.9,2732.6,1.12726447]
[1646814263682,0.37727472,2732.9,2732.5,0.57154825]
[1646814264082,0.37727472,2732.9,2732.6,1.12722268]
[1646814264283,0.37727472,2732.9,2732.7,1.12722682]
[1646814264484,0.37727472,2732.9,2732.5,0.57154825]
[1646814264886,0.37727472,2732.9,2732.6,1.12724306]
[1646814265083,0.37727472,2732.9,2732.5,0.57154825]
[1646814265285,0.37727472,2732.9,2732.6,1.1272405]
[1646814265484,0.37727472,2732.9,2732.5,0.57154825]
[1646814265985,0.37727472,2732.9,2732.6,1.13286069]
[1646814266185,0.37727472,2732.9,2732.5,0.57154825]
[1646814266386,1.21845402,2732.7,2732.6,1.13287731]
[1646814266587,1.21845402,2732.7,2732.5,0.57154825]
[1646814266588,0.00135158,2732.6,2732.5,0.57154825]
[1646814266787,0.3786263,2732.6,2732.5,0.57154825]
[1646814267243,0.3786263,2732.6,2731.8,0.00583933]
[1646814267536,0.3786263,2732.6,2731.9,1.1170611]
[1646814267537,0.91574,2732.4,2731.9,1.1170611]
[1646814267737,0.91574,2732.4,2731.8,0.00583933]
[1646814267738,9.04555532,2732.3,2731.8,0.00583933]
[1646814267933,0.6682806,2732.2,2731.8,0.00583933]
[1646814268133,4.0,2732.0,2731.5,0.0233596]
[1646814268533,4.3651,2732.0,2731.0,0.1829]
[1646814268734,0.9159,2731.8,2731.0,0.1829]
[1646814269136,1.2159,2731.8,2731.0,0.1829]
[1646814269437,1.2159,2731.8,2730.9,7.36]
[1646814269438,0.9651,2731.8,2730.9,7.5429]
[1646814269640,0.9651,2731.8,2730.8,0.00286964]
[1646814269840,1.83183,2731.6,2730.7,0.1829]
[1646814270043,1.83183,2731.6,2730.6,0.18576964]
[1646814270238,1.83183,2731.6,2730.6,0.1829]
[1646814270441,0.99157909,2731.2,2730.6,0.1829]
[1646814270640,0.99157909,2731.2,2730.5,0.03906408]
[1646814271080,1.35667909,2731.2,2730.5,0.03906408]
[1646814271477,0.99157909,2731.2,2730.5,0.9460955]
[1646814272083,1.90752909,2731.2,2730.5,0.9460955]
[1646814272687,2.20752909,2731.2,2730.5,0.9460955]
[1646814273085,2.20752909,2731.2,2730.7,0.00631112]
[1646814273683,1.21595,2731.2,2730.7,0.00631112]
[1646814273885,0.91595,2731.2,2730.7,0.00631112]
[1646814274086,0.91595,2731.2,2730.5,0.9460955]
[1646814274388,0.91595,2731.2,2730.8,0.00626799]
[1646814274585,1.21595,2731.2,2730.8,0.00626799]
[1646814275235,1.21595,2731.2,2730.5,0.03906408]
[1646814275634,1.21595,2731.2,2730.9,0.00626789]
[1646814276436,1.21595,2731.2,2730.5,0.03906408]
[1646814276835,1.21595,2731.2,2730.9,0.00626779]
[1646814277236,0.91595,2731.2,2730.9,0.00626779]
[1646814277635,0.91595,2731.2,2730.7,1.21547097]
[1646814278039,0.91574,2731.5,2730.9,0.00601404]
[1646814278889,0.91574,2731.5,2730.7,1.21547097]
[1646814279089,0.91574,2731.5,2731.1,0.00601375]
[1646814279589,0.91422383,2731.5,2731.1,0.00601375]
[1646814280195,0.91422383,2731.5,2730.7,1.21547097]
[1646814280394,0.91422383,2731.5,2731.2,0.00601355]
[1646814281393,0.91422383,2731.5,2730.7,1.39837097]
[1646814281590,0.91422383,2731.5,2731.2,0.00580366]
[1646814281792,0.91422383,2731.5,2731.2,0.91119743]
[1646814281993,3.909,2731.8,2731.2,0.91119743]
[1646814281994,1.1613,2731.8,2731.2,0.91119743]
[1646814282432,0.91563,2731.9,2731.2,0.90539377]
[1646814282931,1.14508702,2731.7,2731.4,0.00580338]
[1646814283228,2.97670702,2731.7,2731.4,0.00580338]
[1646814283631,2.97670702,2731.7,2731.0,0.023217]
[1646814283830,2.97670702,2731.7,2730.6,0.00286964]
[1646814284031,2.97670702,2731.7,2731.4,0.00580328]
[1646814284232,1.83162,2731.7,2731.4,0.00580328]
[1646814284935,1.83162,2731.7,2730.6,0.00286964]
[1646814285235,1.83162,2731.7,2731.4,0.00581667]
[1646814285636,0.9813462,2731.5,2731.4,0.00581667]
[1646814286081,0.9813462,2731.5,2730.8,0.99149172]
[1646814286480,0.9813462,2731.5,2731.3,0.00581686]
[1646814286681,0.9813462,2731.5,2731.3,0.00280004]
[1646814287081,3.5,2731.4,2731.3,0.00280004]
[1646814287287,3.5,2731.4,2730.6,0.00286964]
[1646814287483,3.5,2731.4,2730.5,10.00286408]
[1646814287484,1.83203,2731.3,2730.5,10.00286408]
[1646814287686,1.83203,2731.3,2730.6,1.10184488]
[1646814288488,1.83203,2731.2,2730.6,1.10184488]
[1646814288687,2.13203,2731.2,2730.6,1.10184488]
[1646814288886,2.13203,2731.2,2730.8,0.00581929]
[1646814289743,2.13203,2731.2,2730.5,0.22196408]
[1646814289935,2.13203,2731.2,2730.9,0.00581919]
[1646814290943,2.13203,2731.2,2730.9,1.00033516]
[1646814291138,2.13203,2731.2,2730.9,1.00615426]
[1646814291340,1.83203,2731.2,2730.9,1.00615426]
[1646814292141,1.83203,2731.2,2730.9,1.00033516]
[1646814292439,2.13203,2731.2,2730.9,0.00581649]
[1646814293242,2.13203,2731.2,2730.5,0.03906408]
[1646814293480,2.13203,2731.2,2730.6,2.2389806]
[1646814293681,2.13203,2731.2,2730.9,0.00581649]
[1646814294488,2.13203,2731.2,2730.5,0.03906408]
[1646814294687,2.13203,2731.2,2730.6,1.10697391]
[1646814294888,2.13203,2731.2,2730.9,0.00581649]
[1646814295688,2.13203,2731.2,2730.5,1.11303158]
[1646814295894,2.13203,2731.2,2730.6,1.10701851]
[1646814296092,2.13203,2731.2,2730.9,0.0058167]
[1646814296891,2.13203,2731.2,2730.5,1.11303158]
[1646814297091,2.13203,2731.2,2730.6,1.10721154]
[1646814297331,2.13203,2731.2,2730.9,0.0058167]
[1646814298132,2.13203,2731.2,2730.5,1.11303158]
[1646814298333,2.13203,2731.2,2730.6,1.10733128]
[1646814298537,0.91601,2731.3,2730.9,0.0058167]
[1646814298934,0.91601,2731.3,2731.0,1.10746373]
[1646814299534,0.91601,2731.3,2731.0,0.00581649]
[1646814300338,0.91601,2731.3,2731.1,1.10776232]
[1646814300981,0.91601,2731.3,2731.0,0.00581649]
[1646814301184,0.91601,2731.3,2731.1,1.11728803]
[1646814301886,0.91601,2731.3,2731.1,1.12310442]
[1646814302085,0.91601,2731.3,2731.2,1.11728803]
[1646814302589,1.1543,2731.8,2731.2,1.11728803]
[1646814302785,14.8109,2732.1,2731.2,1.11728803]
[1646814302987,0.36852932,2732.0,2731.2,1.11728803]
[1646814303186,0.91561,2731.7,2731.3,1.11728803]
[1646814303386,0.91561,2731.7,2731.1,0.00581629]
[1646814303586,0.91561,2731.7,2731.2,1.11794904]
[1646814304388,0.91561,2731.7,2731.2,0.00581623]
[1646814304389,3.5,2731.6,2731.2,0.00581623]
[1646814304742,1.83183,2731.6,2731.2,0.00581623]
[1646814305335,1.83183,2731.6,2730.6,0.00286964]
[1646814305535,1.83183,2731.6,2731.2,0.00581622]
[1646814305736,0.36904535,2731.5,2731.2,0.00581622]
[1646814306538,0.36904535,2731.5,2730.6,0.00286964]
[1646814306738,0.36904535,2731.5,2731.2,0.0058162]
[1646814306939,1.28491535,2731.5,2731.3,1.1240183]
[1646814307137,1.21587,2731.5,2731.3,1.1240183]
[1646814307940,1.21587,2731.5,2731.2,0.00581621]
[1646814308139,1.21587,2731.5,2731.3,1.12485949]
[1646814308887,0.36600749,2731.4,2731.3,1.12485949]
[1646814309083,0.36600749,2731.4,2730.8,1.12485949]
[1646814309283,0.36600749,2731.4,2731.2,0.00581621]
[1646814309684,0.36600749,2731.4,2731.3,1.12590105]
[1646814310289,0.36600749,2731.4,2731.2,0.00582447]
[1646814310488,0.36600749,2731.4,2731.3,1.12590105]
[1646814311690,0.36600749,2731.4,2731.2,0.00582447]
[1646814311889,0.36600749,2731.4,2731.3,1.12590105]
[1646814312735,0.36600749,2731.4,2731.2,0.00582447]
[1646814312936,3.86600749,2731.4,2731.3,1.12590105]
[1646814313135,4.16600749,2731.4,2731.3,1.12862233]
[1646814313435,7.83018749,2731.4,2730.6,0.00286964]
[1646814313635,0.73110749,2731.3,2730.5,1.13404864]
[1646814313837,0.36600749,2731.2,2730.6,1.09498456]
[1646814314048,1.28199749,2731.2,2730.7,1.09498456]
[1646814314235,0.36600749,2731.1,2730.5,0.03906408]
[1646814314435,0.36600749,2731.1,2730.6,1.03881441]
[1646814315994,0.38350849,2731.1,2730.6,1.06798241]
[1646814317295,0.38350849,2731.1,2730.6,0.029168]
[1646814317696,0.00244934,2731.0,2730.7,0.00634289]
[1646814318498,0.38350849,2731.1,2730.6,0.029168]
[1646814318898,0.00244934,2731.0,2730.7,0.00634289]
[1646814319752,0.38350849,2731.1,2730.6,0.029168]
[1646814319957,0.00244934,2731.0,2730.7,0.00634289]
[1646814320860,0.38350849,2731.1,2730.6,0.029168]
[1646814321264,0.0019781,2731.0,2730.8,0.029168]
[1646814322059,0.38350849,2731.1,2730.8,0.029168]
[1646814322359,0.0019781,2731.0,2730.8,0.029168]
[1646814323362,0.38350849,2731.1,2730.8,0.029168]
[1646814323583,0.0019781,2731.0,2730.8,0.029168]
[1646814324591,0.38350849,2731.1,2730.8,0.029168]
[1646814324789,0.00204639,2731.0,2730.8,0.029168]
[1646814324989,0.00204639,2731.0,2730.7,0.00601269]
[1646814325190,0.03121439,2731.0,2730.7,0.00601269]
[1646814325790,0.03121439,2731.0,2730.6,0.029168]
[1646814325791,0.029168,2731.0,2730.6,0.029168]
[1646814325993,0.03121439,2731.0,2730.7,0.00580017]
[1646814326489,0.03121439,2731.0,2730.5,0.03906408]
[1646814326893,0.029168,2731.0,2730.5,0.03906408]
[1646814328437,0.029168,2731.0,2730.5,0.06489748]
[1646814329540,0.00205097,2730.9,2730.6,0.00621923]
[1646814329738,0.91594,2730.8,2730.6,0.00621923]
[1646814330139,3.07904627,2730.9,2730.8,0.39054187]
[1646814330545,3.0769953,2730.9,2730.8,0.0258334]
[1646814330738,3.0478273,2730.9,2730.8,0.0258334]
[1646814330992,2.13188,2730.9,2730.8,0.0258334]
[1646814331783,3.1700581,2730.9,2730.5,0.03906408]
[1646814331983,3.1992261,2730.9,2730.5,0.03906408]
[1646814333591,2.161048,2730.9,2730.5,0.03906408]
[1646814333787,2.161048,2730.9,2730.5,0.71346828]
[1646814333788,2.13188,2730.9,2730.5,0.71346828]
[1646814333987,2.13188,2730.9,2730.6,0.6744042]
[1646814334387,2.13188,2730.9,2730.6,0.68061819]
[1646814334388,2.13393028,2730.9,2730.6,0.68061819]
[1646814334589,2.13393028,2730.9,2730.7,1.04499001]
[1646814335439,2.13188,2730.9,2730.7,1.04499001]
[1646814335642,2.1342164,2730.9,2730.8,1.04499001]
[1646814335842,2.58478024,2730.9,2730.7,1.04499001]
[1646814336043,2.1342164,2730.9,2730.7,1.04499001]
[1646814336441,3.39577026,2731.4,2730.7,1.04499001]
[1646814336442,3.66373,2731.5,2730.9,6.5]
[1646814336643,0.45074613,2731.4,2731.0,1.48999001]
[1646814336847,0.45074613,2731.3,2731.1,1.04499001]
[1646814337041,0.029168,2731.6,2731.1,1.04499001]
[1646814337042,0.91558,2731.5,2731.1,1.04499001]
[1646814337241,0.44693631,2731.4,2731.1,1.04499001]
[1646814337444,0.44693631,2731.4,2731.2,1.18078121]
[1646814337642,0.44693631,2731.4,2731.3,1.04499001]
[1646814337841,0.44693631,2731.4,2731.1,1.04499001]
[1646814338042,0.44693631,2731.4,2731.2,1.04499001]
[1646814338241,0.44693631,2731.4,2731.3,1.04499001]
[1646814338495,0.44693631,2731.4,2731.1,1.04499001]
[1646814338685,0.44693631,2731.4,2731.2,1.04499001]
[1646814338887,0.44693631,2731.4,2730.8,0.6744042]
[1646814339085,0.029168,2731.3,2730.8,0.6744042]
[1646814339286,0.44693631,2731.4,2730.7,0.6744042]
[1646814339287,0.0020084,2731.4,2730.7,0.6744042]
[1646814339486,0.0020084,2731.4,2730.6,0.68039471]
[1646814339686,0.029168,2731.2,2730.6,0.68039471]
[1646814339889,0.945028,2731.2,2730.6,0.68039471]
[1646814340092,0.945028,2731.2,2730.6,0.6744042]
[1646814340492,0.0020084,2731.0,2730.6,0.68039463]
[1646814340891,0.87413883,2731.0,2730.6,0.68039463]
[1646814341291,0.87413883,2731.0,2730.5,0.71346828]
[1646814341494,0.029168,2730.9,2730.5,0.03906408]
[1646814341691,0.029168,2730.9,2730.5,0.71346828]
[1646814341890,0.029168,2730.9,2730.6,0.00599041]
[1646814342641,0.029168,2730.9,2730.5,1.92496532]
[1646814342840,0.029168,2730.9,2730.6,0.00579887]
[1646814343440,0.00204998,2731.0,2730.6,0.00579887]
[1646814343441,0.03121798,2731.0,2730.6,0.00579887]
[1646814343642,0.03121798,2731.0,2730.6,0.68020307]
[1646814343841,0.029168,2731.0,2730.5,0.71346828]
[1646814344040,0.03121798,2731.0,2730.6,0.00579887]
[1646814345041,0.029168,2731.0,2730.6,1.18120576]
[1646814345244,0.03121802,2731.0,2730.6,1.1870046]
[1646814346184,0.03121802,2731.0,2730.6,1.18120576]
[1646814346185,0.029168,2731.0,2730.6,1.18120576]
[1646814346588,0.029168,2730.9,2730.6,1.18701127]
[1646814347288,0.00204399,2731.0,2730.6,1.18701127]
[1646814347488,0.00204399,2731.0,2730.6,1.85560996]
[1646814347489,0.029168,2731.0,2730.6,1.85560996]
[1646814347689,0.029168,2731.0,2730.6,0.00580555]
[1646814347690,0.03121195,2731.0,2730.6,0.00580555]
[1646814348091,0.00204395,2731.0,2730.6,0.00580555]
[1646814348290,0.029168,2730.9,2730.6,0.00580555]
[1646814348699,0.029168,2730.9,2730.5,0.71346828]
[1646814348893,0.029168,2730.9,2730.6,0.00580551]
[1646814349746,0.029168,2730.9,2730.5,0.71346828]
[1646814349953,0.029168,2730.9,2730.6,0.00581756]
[1646814350150,0.00206517,2731.0,2730.5,0.70154823]
[1646814350952,1.95681744,2731.2,2730.6,1.14159718]
[1646814351152,2.32191744,2731.2,2730.6,1.14159718]
[1646814351353,1.95681744,2731.2,2730.6,1.14159718]
[1646814351552,0.91586,2731.2,2730.6,1.14159718]
[1646814354891,0.00247974,2731.0,2730.6,1.14159718]
[1646814355891,0.91586,2731.2,2730.6,1.14159718]
[1646814356091,0.00247974,2730.9,2730.6,1.14159718]
[1646814357093,0.91586,2731.2,2730.6,1.14159718]
[1646814357337,0.00247974,2730.9,2730.5,0.03550846]
[1646814358136,0.936861,2731.2,2730.5,0.03550846]
[1646814358137,0.936861,2731.2,2730.5,0.029168]
[1646814358541,0.936861,2731.2,2730.5,0.03550844]
[1646814358542,0.00247971,2730.9,2730.5,0.03550844]
[1646814359343,0.936861,2731.2,2730.5,0.029168]
[1646814359841,0.00247971,2730.9,2730.5,0.03538956]
[1646814360642,0.936861,2731.2,2730.5,0.029168]
[1646814361001,2.75008971,2730.9,2730.5,0.03538956]
[1646814361794,2.74761,2730.9,2730.5,0.029168]
[1646814361995,2.75008971,2730.9,2730.5,0.03538956]
[1646814362194,2.75008971,2730.9,2730.3,0.1829]
[1646814362395,2.77925771,2730.9,2730.3,0.1829]
[1646814362798,2.77925771,2730.9,2730.3,1.35616669]
[1646814362999,2.776778,2730.9,2730.3,1.35616669]
[1646814363399,2.776778,2730.9,2730.3,0.1829]
[1646814364603,1.07738658,2730.4,2730.1,0.91857187]
[1646814364844,3.82576658,2730.4,2730.2,1.71901685]
[1646814365145,3.82576658,2730.4,2730.3,1.04386126]
[1646814365342,3.82576658,2730.4,2730.1,0.69356919]
[1646814365742,3.82576658,2730.4,2730.1,0.0184136]
[1646814366945,3.82576658,2730.4,2730.1,0.02475473]
[1646814367344,2.74838,2730.4,2730.1,0.69991032]
[1646814367546,2.74838,2730.4,2730.1,0.02475473]
[1646814367744,2.74838,2730.4,2730.1,0.0184136]
[1646814368148,2.74838,2730.4,2730.1,0.02475473]
[1646814368346,1.05768921,2730.3,2730.1,0.02475473]
[1646814368798,2.74838,2730.4,2730.1,0.02475473]
[1646814369094,2.777548,2730.4,2730.1,0.0184136]
[1646814369295,2.777548,2730.4,2730.1,0.02475483]
[1646814369494,3.104548,2730.4,2730.0,0.09112627]
[1646814369994,3.07538,2730.4,2730.0,0.09112627]
[1646814370196,1.47150635,2730.4,2730.0,0.76628186]
[1646814370595,1.14450635,2730.4,2730.0,0.76628186]
[1646814370996,1.14450635,2730.4,2730.0,1.31728186]
[1646814371197,1.14450635,2730.4,2730.0,0.64212627]
[1646814371600,1.14450635,2730.4,2730.0,0.64750978]
[1646814372642,1.14450635,2730.4,2730.0,0.64212627]
[1646814372842,1.14450635,2730.4,2730.0,0.64750978]
[1646814373844,1.14450635,2730.4,2730.0,1.31728186]
[1646814374046,1.14450635,2730.4,2730.0,1.32341406]
[1646814374846,1.14450635,2730.4,2730.0,1.31082881]
[1646814375045,1.14450635,2730.4,2730.0,1.30469661]
[1646814375245,1.14450635,2730.4,2730.0,1.31063943]
[1646814375446,1.14450635,2730.4,2730.1,1.12015559]
[1646814375645,1.14450635,2730.4,2730.2,0.67515559]
[1646814375846,0.00251088,2730.6,2730.3,1.12015559]
[1646814376091,0.00251088,2730.6,2730.5,0.67515559]
[1646814376390,0.029168,2731.1,2730.6,1.06259709]
[1646814376591,0.029168,2731.1,2730.7,0.445]
[1646814376988,0.029168,2731.1,2730.7,0.36739194]
[1646814377589,0.00251114,2731.0,2730.7,0.36739194]
[1646814378593,0.944788,2731.1,2730.7,0.36739194]
[1646814378795,0.00251114,2731.0,2730.7,0.36739194]
[1646814379845,0.944788,2731.1,2730.6,1.06259709]
[1646814380042,0.00251114,2731.0,2730.6,1.06259709]
[1646814381045,0.944788,2731.1,2730.6,1.06259709]
[1646814381342,0.00251114,2730.9,2730.6,1.06259709]
[1646814381943,0.00251114,2730.9,2730.5,0.1829]
[1646814382143,0.944788,2731.1,2730.5,0.1829]
[1646814382344,0.91562,2731.1,2730.5,0.1829]
[1646814382645,0.00251114,2730.9,2730.5,0.1829]
[1646814383342,0.029168,2731.0,2730.5,0.1829]
[1646814383591,0.00251114,2730.8,2730.4,1.84742023]
[1646814383791,0.00251114,2730.8,2730.5,0.67515559]
[1646814383792,1.83409114,2730.8,2730.5,0.67515559]
[1646814383991,1.83409114,2730.8,2730.4,0.1829]
[1646814384190,2.13409114,2730.8,2730.4,0.445]
[1646814384593,2.13158,2730.8,2730.4,0.445]
[1646814384798,0.03167914,2730.7,2730.4,0.445]
[1646814384994,0.03167914,2730.7,2730.0,1.53563362]
[1646814385196,0.00251114,2730.7,2730.1,1.37022789]
[1646814385395,0.029168,2730.5,2730.1,2.27038616]
[1646814385597,0.029168,2730.5,2730.2,0.97165809]
[1646814385795,0.029168,2730.5,2730.2,1.41665809]
[1646814385995,0.029168,2730.5,2730.3,0.97165809]
[1646814386195,0.029168,2730.5,2730.2,0.445]
[1646814386394,0.029168,2730.5,2730.3,0.445]
[1646814386795,0.029168,2730.5,2730.1,0.90015827]
[1646814386999,0.029168,2730.5,2730.2,0.445]
[1646814387439,0.029168,2730.4,2730.0,1.53563365]
[1646814387640,0.945258,2730.4,2730.0,0.63547538]
[1646814387839,1.16801867,2730.1,2730.0,0.63547538]
[1646814388039,1.16801867,2730.1,2729.8,0.33884634]
[1646814388240,1.19718667,2730.1,2729.8,0.03552344]
[1646814388839,1.19718667,2730.1,2729.8,0.93919344]
[1646814390047,1.19718667,2730.1,2729.8,1.85539344]
[1646814390247,1.2044,2730.8,2730.4,0.32695553]
[1646814390447,0.019251,2730.7,2730.4,1.23045553]
[1646814391505,1.09907675,2730.7,2730.4,1.23045553]
[1646814393309,1.1015351,2730.7,2730.4,1.23045553]
[1646814394313,1.09907675,2730.7,2730.4,1.23045553]
[1646814394508,1.1015351,2730.7,2730.4,1.23045553]
[1646814394742,1.1015351,2730.7,2730.4,0.32695553]
[1646814395345,1.09907675,2730.7,2730.4,0.32695553]
[1646814395945,0.019251,2730.7,2730.4,1.24290553]
[1646814396944,1.053553,2730.6,2730.4,1.24290553]
[1646814397745,0.9619062,2730.6,2730.4,1.24290553]
[1646814398145,0.00204517,2730.6,2730.4,1.24290553]
[1646814398995,1.8403274,2731.2,2730.4,1.24290553]
[1646814399196,0.00204517,2730.6,2730.5,2.93100919]
[1646814400398,1.191351,2731.2,2730.5,2.93100919]
[1646814400399,0.00223058,2730.7,2730.5,2.93100919]
[1646814401095,0.00223058,2730.7,2730.5,1.860618]
[1646814401498,1.191351,2731.2,2730.5,1.860618]
[1646814401698,0.00223058,2730.7,2730.5,1.860618]
[1646814402343,0.00223058,2730.7,2730.6,1.11329784]
[1646814402548,1.191351,2731.2,2730.6,1.11329784]
[1646814402745,1.556451,2731.2,2730.5,1.860618]